[Event "British Rapidplay Championship 2023"]
[Site "Mercure Bradford, Bankfield Hotel"]
[Date "2023.04.15"]
[Round "1.6"]
[White "Pitcher, John"]
[Black "Procter, Colin S"]
[Result "1-0"]
[TimeControl "15 minutes plus 10 seconds per move"]
[WhiteElo "2358"]
[BlackElo "1814"]

1. e4 {[%clk 00:15:13]} {[%emt 00:00:05]} c6 {[%clk 00:15:17]} {[%emt
00:00:03]} 2. d4 {[%clk 00:15:21]} {[%emt 00:00:03]} d5 {[%clk 00:15:25]}
{[%emt 00:00:02]} 3. e5 {[%clk 00:15:27]} {[%emt 00:00:04]} c5 {[%clk
00:15:33]} {[%emt 00:00:02]} 4. c4 {[%clk 00:15:32]} {[%emt 00:00:04]} e6
{[%clk 00:15:10]} {[%emt 00:00:33]} 5. Nf3 {[%clk 00:15:31]} {[%emt 00:00:12]}
Nc6 {[%clk 00:15:16]} {[%emt 00:00:04]} 6. Nc3 {[%clk 00:14:59]} {[%emt
00:00:42]} cxd4 {[%clk 00:14:52]} {[%emt 00:00:33]} 7. Nxd4 {[%clk 00:15:06]}
{[%emt 00:00:03]} Nxe5 {[%clk 00:14:20]} {[%emt 00:00:42]} 8. cxd5 {[%clk
00:15:10]} {[%emt 00:00:06]} Nf6 {[%clk 00:14:08]} {[%emt 00:00:22]} 9. Bb5+
{[%clk 00:14:15]} {[%emt 00:01:06]} Bd7 {[%clk 00:13:33]} {[%emt 00:00:45]} 10.
Qe2 {[%clk 00:11:46]} {[%emt 00:02:39]} Bxb5 {[%clk 00:12:47]} {[%emt
00:00:54]} 11. Ndxb5 {[%clk 00:10:06]} {[%emt 00:01:51]} Bc5 {[%clk 00:09:53]}
{[%emt 00:03:04]} 12. Bf4 {[%clk 00:07:56]} {[%emt 00:02:20]} Ng6 {[%clk
00:09:45]} {[%emt 00:00:19]} 13. Nc7+ {[%clk 00:06:48]} {[%emt 00:01:18]} Kf8
{[%clk 00:09:53]} {[%emt 00:00:02]} 14. Bg3 {[%clk 00:06:56]} {[%emt 00:00:02]}
Rc8 {[%clk 00:09:22]} {[%emt 00:00:41]} 15. d6 {[%clk 00:06:27]} {[%emt
00:00:38]} Nd5 {[%clk 00:07:16]} {[%emt 00:02:16]} 16. N7xd5 {[%clk 00:05:17]}
{[%emt 00:01:20]} exd5 {[%clk 00:07:13]} {[%emt 00:00:12]} 17. Rd1 {[%clk
00:04:58]} {[%emt 00:00:30]} Qe8 {[%clk 00:04:11]} {[%emt 00:03:13]} 18. Rxd5
{[%clk 00:04:35]} {[%emt 00:00:33]} Qxe2+ {[%clk 00:04:15]} {[%emt 00:00:05]}
19. Kxe2 {[%clk 00:04:41]} {[%emt 00:00:04]} f6 {[%clk 00:03:40]} {[%emt
00:00:46]} 20. d7 {[%clk 00:04:35]} {[%emt 00:00:16]} Rd8 {[%clk 00:03:06]}
{[%emt 00:00:43]} 21. Rxc5 {[%clk 00:04:10]} {[%emt 00:00:36]} Kf7 {[%clk
00:03:04]} {[%emt 00:00:10]} 22. Rd1 {[%clk 00:04:14]} {[%emt 00:00:07]} Ne5
{[%clk 00:02:53]} {[%emt 00:00:21]} 23. Bxe5 {[%clk 00:04:13]} {[%emt
00:00:12]} fxe5 {[%clk 00:03:01]} {[%emt 00:00:02]} 24. Rc7 {[%emt 00:00:04]}
Ke6 {[%emt 00:00:51]} 25. Rxb7 {[%clk 00:03:24]} {[%emt 00:00:04]} Rhf8 {[%clk
00:02:56]} {[%emt 00:00:15]} 26. Ne4 {[%clk 00:03:28]} {[%emt 00:00:06]} h6
{[%clk 00:02:42]} {[%emt 00:00:24]} 27. Rxa7 {[%clk 00:03:26]} {[%emt
00:00:12]} Rb8 {[%clk 00:02:35]} {[%emt 00:00:17]} 28. Rd6+ {[%clk 00:03:08]}
{[%emt 00:00:28]} Kf5 {[%clk 00:02:17]} {[%emt 00:00:28]} 29. Ng3+ {[%clk
00:03:15]} {[%emt 00:00:02]} Kf4 {[%clk 00:02:02]} {[%emt 00:00:24]} 30. Ra4+
{[%clk 00:03:21]} {[%emt 00:00:05]} 1-0

[Event "British Rapidplay Championship 2023"]
[Site "Mercure Bradford, Bankfield Hotel"]
[Date "2023.04.15"]
[Round "1.7"]
[White "Cuaresma, Bien"]
[Black "Dong, Bao Nghia"]
[Result "0-1"]
[TimeControl "15 minutes plus 10 seconds per move"]
[WhiteElo "1798"]
[BlackElo "2331"]

1. e4 {[%clk 00:15:10]} {[%emt 03:50:55]} e6 {[%clk 00:15:10]} {[%emt
00:00:52]} 2. Nc3 {[%clk 00:15:22]} {[%emt 00:00:08]} d5 {[%clk 00:15:17]}
{[%emt 00:00:02]} 3. d3 {[%clk 00:14:46]} {[%emt 00:00:46]} Nf6 {[%clk
00:15:24]} {[%emt 00:00:03]} 4. Bd2 {[%clk 00:14:43]} {[%emt 00:00:14]} c5
{[%clk 00:15:18]} {[%emt 00:00:15]} 5. e5 {[%clk 00:14:34]} {[%emt 00:00:20]}
Nfd7 {[%clk 00:15:26]} {[%emt 00:00:02]} 6. f4 {[%clk 00:14:43]} Nc6 {[%clk
00:15:35]} {[%emt 00:00:01]} 7. Nf3 {[%clk 00:14:52]} a6 {[%clk 00:15:40]}
{[%emt 00:00:05]} 8. Be2 {[%clk 00:14:53]} {[%emt 00:00:09]} b5 {[%clk
00:15:47]} {[%emt 00:00:02]} 9. a3 {[%clk 00:14:54]} {[%emt 00:00:09]} Qb6
{[%clk 00:15:53]} {[%emt 00:00:03]} 10. O-O {[%clk 00:14:53]} {[%emt 00:00:11]}
h6 {[%clk 00:16:01]} {[%emt 00:00:03]} 11. Kh1 {[%clk 00:14:58]} {[%emt
00:00:05]} Bb7 {[%clk 00:16:10]} 12. Qe1 {[%clk 00:15:01]} {[%emt 00:00:07]}
O-O-O {[%clk 00:15:54]} {[%emt 00:00:26]} 13. Nd1 {[%clk 00:14:46]} {[%emt
00:00:26]} Be7 {[%clk 00:15:57]} {[%emt 00:00:06]} 14. c3 {[%clk 00:14:46]}
{[%emt 00:00:10]} Rdg8 {[%clk 00:15:23]} {[%emt 00:00:43]} 15. a4 {[%clk
00:14:49]} {[%emt 00:00:09]} g5 {[%clk 00:15:24]} {[%emt 00:00:08]} 16. axb5
{[%clk 00:14:51]} {[%emt 00:00:07]} axb5 {[%clk 00:15:32]} {[%emt 00:00:03]} 17.
d4 {[%clk 00:14:36]} {[%emt 00:00:26]} g4 {[%emt 00:00:49]} 18. Ng1 {[%clk
00:14:19]} cxd4 {[%clk 00:15:24]} {[%emt 00:00:04]} 19. cxd4 {[%clk 00:14:10]}
{[%emt 00:00:17]} Nxd4 {[%clk 00:15:24]} {[%emt 00:00:12]} 20. Ba5 {[%clk
00:13:58]} {[%emt 00:00:22]} Qc6 {[%clk 00:15:30]} {[%emt 00:00:04]} 21. Qd2
{[%clk 00:13:29]} {[%emt 00:00:39]} Nb3 {[%clk 00:15:37]} {[%emt 00:00:03]} 22.
Qc3 {[%clk 00:12:45]} {[%emt 00:00:55]} Nxa1 {[%clk 00:15:32]} {[%emt
00:00:15]} 23. Qxc6+ {[%clk 00:12:07]} {[%emt 00:00:46]} Bxc6 {[%clk 00:15:39]}
{[%emt 00:00:03]} 24. Ne3 {[%clk 00:11:42]} {[%emt 00:00:36]} Nb3 {[%clk
00:14:47]} {[%emt 00:01:02]} 25. Be1 {[%clk 00:11:32]} {[%emt 00:00:20]} h5
{[%clk 00:14:54]} {[%emt 00:00:03]} 26. Nc2 {[%clk 00:10:30]} {[%emt 00:01:13]}
h4 {[%clk 00:14:42]} {[%emt 00:00:21]} 27. h3 {[%clk 00:09:34]} {[%emt
00:01:07]} d4 {[%clk 00:14:41]} {[%emt 00:00:12]} 28. Bxg4 {[%clk 00:09:17]}
{[%emt 00:00:27]} Rxg4 {[%clk 00:14:15]} {[%emt 00:00:36]} 29. hxg4 {[%clk
00:09:24]} {[%emt 00:00:02]} h3 {[%clk 00:14:21]} {[%emt 00:00:04]} 30. Nf3
{[%clk 00:09:22]} {[%emt 00:00:13]} d3 {[%clk 00:14:29]} {[%emt 00:00:02]} 31.
Ncd4 {[%clk 00:08:59]} {[%emt 00:00:33]} Nxd4 {[%clk 00:14:22]} {[%emt
00:00:16]} 0-1

[Event "British Rapidplay Championship 2023"]
[Site "Mercure Bradford, Bankfield Hotel"]
[Date "2023.04.15"]
[Round "1.8"]
[White "Eckersley-Waites, Tom"]
[Black "Sasikumar, Srivathsan"]
[Result "1-0"]
[TimeControl "15 minutes plus 10 seconds per move"]
[WhiteElo "2304"]
[BlackElo "1798"]

1. d4 {[%clk 00:15:17]} {[%emt 00:00:02]} d5 {[%clk 00:15:14]} {[%emt
00:00:06]} 2. c4 {[%clk 00:15:25]} {[%emt 00:00:02]} e6 {[%clk 00:15:13]}
{[%emt 00:00:12]} 3. Nc3 {[%clk 00:15:33]} {[%emt 00:00:02]} c6 {[%clk
00:15:11]} {[%emt 00:00:12]} 4. Nf3 {[%clk 00:15:30]} {[%emt 00:00:12]} Nf6
{[%clk 00:15:06]} {[%emt 00:00:15]} 5. Bg5 {[%clk 00:15:13]} {[%emt 00:00:27]}
Be7 {[%clk 00:15:03]} {[%emt 00:00:13]} 6. e3 {[%clk 00:15:20]} {[%emt
00:00:03]} O-O {[%clk 00:15:03]} {[%emt 00:00:10]} 7. Qc2 {[%clk 00:15:25]}
{[%emt 00:00:05]} h6 {[%clk 00:14:55]} {[%emt 00:00:18]} 8. h4 {[%clk
00:15:18]} {[%emt 00:00:17]} Nbd7 {[%clk 00:12:27]} {[%emt 00:02:39]} 9. O-O-O
{[%clk 00:15:10]} {[%emt 00:00:18]} b6 {[%clk 00:10:48]} {[%emt 00:01:48]} 10.
Bxf6 {[%clk 00:13:22]} {[%emt 00:01:58]} Nxf6 {[%clk 00:10:37]} {[%emt
00:00:21]} 11. Ne5 {[%clk 00:13:27]} {[%emt 00:00:05]} Bb7 {[%clk 00:10:07]}
{[%emt 00:00:40]} 12. g4 {[%clk 00:13:07]} {[%emt 00:00:31]} Bd6 {[%clk
00:09:40]} {[%emt 00:00:36]} 13. g5 {[%clk 00:09:19]} {[%emt 00:03:59]} Bxe5
{[%clk 00:09:10]} {[%emt 00:00:40]} 14. dxe5 {[%clk 00:09:22]} {[%emt
00:00:07]} Ng4 {[%clk 00:09:00]} {[%emt 00:00:19]} 15. gxh6 {[%clk 00:06:38]}
{[%emt 00:02:54]} Nxh6 {[%clk 00:08:47]} {[%emt 00:00:22]} 16. Ne4 {[%emt
00:00:05]} dxe4 {[%clk 00:07:09]} {[%emt 00:01:47]} 17. Rxd8 {[%clk 00:06:53]}
{[%emt 00:00:02]} Raxd8 {[%clk 00:06:50]} {[%emt 00:00:28]} 18. Bg2 {[%clk
00:06:42]} {[%emt 00:00:21]} c5 {[%clk 00:05:38]} {[%emt 00:01:22]} 19. Bxe4
{[%clk 00:06:41]} {[%emt 00:00:11]} Bxe4 {[%clk 00:05:42]} {[%emt 00:00:06]} 20.
Qxe4 {[%clk 00:06:49]} {[%emt 00:00:03]} f5 {[%clk 00:05:16]} {[%emt 00:00:36]}
21. Qc6 {[%clk 00:05:52]} {[%emt 00:01:06]} Rfe8 {[%clk 00:04:40]} {[%emt
00:00:45]} 22. Rd1 {[%clk 00:05:11]} {[%emt 00:00:52]} Rxd1+ {[%clk 00:04:34]}
{[%emt 00:00:16]} 23. Kxd1 {[%clk 00:05:18]} {[%emt 00:00:03]} Kf7 {[%clk
00:04:42]} {[%emt 00:00:02]} 24. f3 {[%clk 00:05:09]} {[%emt 00:00:20]} f4
{[%clk 00:03:29]} {[%emt 00:01:22]} 25. e4 {[%clk 00:04:43]} {[%emt 00:00:36]}
Ng8 {[%clk 00:02:55]} {[%emt 00:00:44]} 26. Qd7+ {[%clk 00:04:37]} {[%emt
00:00:16]} Re7 {[%clk 00:03:03]} {[%emt 00:00:02]} 27. Qd2 {[%clk 00:04:45]}
{[%emt 00:00:02]} g5 {[%clk 00:02:35]} {[%emt 00:00:38]} 28. hxg5 {[%clk
00:04:40]} {[%emt 00:00:15]} Kg6 {[%clk 00:02:44]} 29. Qd8 {[%clk 00:04:17]}
{[%emt 00:00:32]} Kg7 {[%clk 00:02:39]} {[%emt 00:00:16]} 30. Ke2 {[%clk
00:04:13]} {[%emt 00:00:14]} Rf7 {[%clk 00:02:40]} {[%emt 00:00:09]} 31. Qc8
{[%clk 00:03:53]} {[%emt 00:00:30]} Re7 {[%clk 00:01:45]} {[%emt 00:01:05]} 32.
a3 {[%clk 00:04:01]} {[%emt 00:00:02]} Kf7 {[%clk 00:01:52]} {[%emt 00:00:02]}
33. b4 {[%clk 00:03:58]} {[%emt 00:00:14]} cxb4 {[%clk 00:01:57]} {[%emt
00:00:05]} 34. axb4 {[%clk 00:04:06]} {[%emt 00:00:02]} a5 {[%clk 00:02:02]}
{[%emt 00:00:06]} 35. b5 {[%clk 00:03:09]} {[%emt 00:01:06]} Kg7 {[%clk
00:01:14]} {[%emt 00:00:58]} 36. Qd8 {[%clk 00:03:07]} {[%emt 00:00:27]} 1-0

[Event "British Rapidplay Championship 2023"]
[Site "Mercure Bradford, Bankfield Hotel"]
[Date "2023.04.15"]
[Round "1.9"]
[White "McKay, Jonathan"]
[Black "Makkar, Rajat"]
[Result "0-1"]
[TimeControl "15 minutes plus 10 seconds per move"]
[WhiteElo "1796"]
[BlackElo "2297"]

1. e4 {[%clk 00:15:18]} {[%emt 00:00:01]} e5 {[%clk 00:15:19]} {[%emt
00:00:02]} 2. Nf3 {[%clk 00:15:25]} {[%emt 00:00:03]} Nc6 {[%clk 00:15:27]}
{[%emt 00:00:02]} 3. Bb5 {[%clk 00:15:31]} {[%emt 00:00:03]} a6 {[%clk
00:15:34]} {[%emt 00:00:04]} 4. Ba4 {[%clk 00:15:37]} {[%emt 00:00:03]} Nf6
{[%clk 00:15:40]} {[%emt 00:00:04]} 5. d3 {[%clk 00:15:43]} {[%emt 00:00:04]}
d6 {[%clk 00:14:55]} {[%emt 00:00:55]} 6. c3 {[%clk 00:15:41]} {[%emt
00:00:12]} g6 {[%clk 00:15:04]} {[%emt 00:00:02]} 7. O-O {[%clk 00:15:40]}
{[%emt 00:00:11]} Bg7 {[%clk 00:15:11]} {[%emt 00:00:03]} 8. h3 {[%clk
00:15:09]} {[%emt 00:00:41]} O-O {[%clk 00:14:57]} {[%emt 00:00:23]} 9. Nbd2
{[%clk 00:15:03]} {[%emt 00:00:16]} b5 {[%clk 00:15:06]} {[%emt 00:00:02]} 10.
Bc2 {[%clk 00:14:59]} {[%emt 00:00:12]} Re8 {[%clk 00:15:14]} {[%emt 00:00:04]}
11. a4 {[%clk 00:14:32]} {[%emt 00:00:36]} Bb7 {[%clk 00:14:57]} {[%emt
00:00:28]} 12. b4 {[%clk 00:13:28]} {[%emt 00:01:13]} Qe7 {[%clk 00:13:42]}
{[%emt 00:01:25]} 13. Re1 {[%clk 00:13:06]} {[%emt 00:00:32]} Rad8 {[%clk
00:13:38]} {[%emt 00:00:15]} 14. Nb3 {[%clk 00:11:42]} {[%emt 00:01:33]} d5
{[%clk 00:12:00]} {[%emt 00:01:48]} 15. Qe2 {[%clk 00:10:51]} {[%emt 00:00:59]}
d4 {[%clk 00:11:35]} {[%emt 00:00:37]} 16. Nc5 {[%clk 00:09:53]} {[%emt
00:01:08]} Bc8 {[%clk 00:11:29]} {[%emt 00:00:17]} 17. axb5 {[%clk 00:09:20]}
{[%emt 00:00:43]} axb5 {[%clk 00:11:36]} {[%emt 00:00:03]} 18. Bd2 {[%clk
00:07:27]} {[%emt 00:02:01]} Nd7 {[%clk 00:09:34]} {[%emt 00:02:13]} 19. Nxd7
{[%clk 00:04:55]} {[%emt 00:02:41]} Bxd7 {[%clk 00:08:44]} {[%emt 00:01:02]} 20.
Reb1 {[%clk 00:04:18]} {[%emt 00:00:46]} Ra8 {[%clk 00:08:40]} {[%emt
00:00:14]} 21. Qe1 {[%clk 00:03:40]} {[%emt 00:00:46]} Bf8 {[%clk 00:08:37]}
{[%emt 00:00:15]} 22. Rxa8 {[%clk 00:03:14]} {[%emt 00:00:36]} Rxa8 {[%clk
00:08:46]} 23. c4 {[%clk 00:03:16]} {[%emt 00:00:08]} bxc4 {[%clk 00:08:18]}
{[%emt 00:00:38]} 24. dxc4 {[%clk 00:03:22]} {[%emt 00:00:04]} Ra2 {[%clk
00:07:55]} {[%emt 00:00:34]} 25. Bb3 {[%clk 00:03:22]} {[%emt 00:00:08]} Rxd2
{[%clk 00:07:48]} {[%emt 00:00:17]} 26. Qxd2 {[%clk 00:03:23]} {[%emt
00:00:09]} Nxb4 {[%clk 00:07:50]} {[%emt 00:00:10]} 27. c5 {[%clk 00:02:41]}
{[%emt 00:00:52]} Qxc5 {[%clk 00:07:28]} {[%emt 00:00:32]} 28. Qg5 {[%clk
00:02:35]} {[%emt 00:00:14]} Nd3 {[%emt 00:03:08]} 29. Qd8 {[%clk 00:02:18]}
Bb5 {[%clk 00:02:41]} {[%emt 00:02:26]} 30. Ng5 {[%clk 00:01:45]} {[%emt
00:00:42]} Bc4 {[%clk 00:02:50]} {[%emt 00:00:03]} 31. Bxc4 {[%clk 00:01:03]}
{[%emt 00:00:51]} Qxc4 {[%clk 00:02:59]} {[%emt 00:00:02]} 32. Nxh7 {[%clk
00:01:05]} {[%emt 00:00:06]} Kxh7 {[%clk 00:02:56]} {[%emt 00:00:15]} 33. Qxf8
{[%clk 00:01:12]} {[%emt 00:00:02]} Qa2 {[%clk 00:02:55]} {[%emt 00:00:12]} 34.
Rf1 {[%clk 00:00:49]} {[%emt 00:00:32]} c5 {[%clk 00:02:55]} {[%emt 00:00:11]}
35. h4 {[%clk 00:00:30]} {[%emt 00:00:29]} Qc4 {[%clk 00:01:34]} {[%emt
00:01:31]} 36. h5 {[%clk 00:00:19]} {[%emt 00:00:20]} gxh5 {[%clk 00:01:40]}
{[%emt 00:00:04]} 37. Qe7 {[%clk 00:00:19]} {[%emt 00:00:09]} Qe6 {[%clk
00:01:29]} {[%emt 00:00:23]} 38. Qg5 {[%clk 00:00:15]} {[%emt 00:00:13]} Qg6
{[%clk 00:01:36]} {[%emt 00:00:03]} 39. Qd2 {[%clk 00:00:16]} {[%emt 00:00:08]}
Qxe4 {[%clk 00:01:28]} {[%emt 00:00:19]} 40. Ra1 {[%clk 00:00:14]} {[%emt
00:00:12]} c4 {[%clk 00:01:09]} {[%emt 00:00:30]} 41. Ra7 {[%clk 00:00:14]}
{[%emt 00:00:09]} Kg6 {[%clk 00:00:52]} {[%emt 00:00:27]} 42. Ra6+ {[%clk
00:00:22]} {[%emt 00:00:02]} f6 {[%clk 00:00:58]} {[%emt 00:00:05]} 43. Ra7
{[%clk 00:00:14]} {[%emt 00:00:18]} Qe1+ {[%clk 00:00:43]} {[%emt 00:00:25]} 44.
Qxe1 {[%clk 00:00:22]} {[%emt 00:00:01]} Nxe1 {[%clk 00:00:52]} {[%emt
00:00:02]} 45. Kf1 {[%clk 00:00:27]} {[%emt 00:00:04]} Nd3 {[%emt 00:00:02]} 46.
Rc7 {[%clk 00:00:29]} {[%emt 00:00:07]} c3 {[%clk 00:01:10]} {[%emt 00:00:02]}
47. Ke2 {[%clk 00:00:32]} {[%emt 00:00:06]} Nf4+ {[%clk 00:01:19]} {[%emt
00:00:02]} 48. Kf3 {[%clk 00:00:34]} {[%emt 00:00:07]} Kf5 {[%clk 00:01:24]}
{[%emt 00:00:07]} 49. Rc5 {[%clk 00:00:27]} {[%emt 00:00:15]} d3 {[%clk
00:01:24]} {[%emt 00:00:11]} 50. g3 {[%clk 00:00:14]} {[%emt 00:00:22]} d2
{[%clk 00:01:31]} {[%emt 00:00:03]} 51. Rxc3 {[%clk 00:00:00]} {[%emt
00:00:14]} 0-1

[Event "British Rapidplay Championship 2023"]
[Site "Mercure Bradford, Bankfield Hotel"]
[Date "2023.04.15"]
[Round "1.10"]
[White "Ismail, Mohammed Aayan"]
[Black "Deepak Ambattu, Rithvik"]
[Result "1-0"]
[TimeControl "15 minutes plus 10 seconds per move"]
[WhiteElo "2269"]
[BlackElo "1782"]

1. c4 {[%clk 00:15:19]} c5 {[%clk 00:15:13]} {[%emt 00:00:06]} 2. Nc3 {[%clk
00:15:27]} {[%emt 00:00:03]} Nc6 {[%clk 00:15:12]} {[%emt 00:00:10]} 3. g3
{[%clk 00:15:35]} {[%emt 00:00:03]} g6 {[%clk 00:15:14]} {[%emt 00:00:06]} 4.
Bg2 {[%clk 00:15:43]} {[%emt 00:00:03]} Bg7 {[%clk 00:15:22]} {[%emt 00:00:03]}
5. Nf3 {[%clk 00:15:11]} {[%emt 00:00:42]} d6 {[%clk 00:15:27]} {[%emt
00:00:04]} 6. O-O {[%clk 00:15:17]} {[%emt 00:00:05]} Bf5 {[%clk 00:15:25]}
{[%emt 00:00:12]} 7. d3 {[%clk 00:15:18]} {[%emt 00:00:09]} Qd7 {[%clk
00:15:22]} {[%emt 00:00:14]} 8. Re1 {[%clk 00:15:26]} {[%emt 00:00:02]} Bh3
{[%clk 00:15:02]} {[%emt 00:00:29]} 9. Bd2 {[%clk 00:14:40]} {[%emt 00:00:56]}
h5 {[%clk 00:14:32]} {[%emt 00:00:40]} 10. Bxh3 {[%clk 00:14:00]} {[%emt
00:00:50]} Qxh3 {[%clk 00:14:37]} {[%emt 00:00:04]} 11. Ng5 {[%clk 00:14:08]}
{[%emt 00:00:02]} Qd7 {[%clk 00:14:02]} {[%emt 00:00:44]} 12. h4 {[%clk
00:13:29]} {[%emt 00:00:50]} Nf6 {[%clk 00:14:02]} {[%emt 00:00:11]} 13. Nd5
{[%clk 00:12:11]} {[%emt 00:01:28]} O-O {[%clk 00:13:22]} {[%emt 00:00:49]} 14.
Bc3 {[%clk 00:12:15]} {[%emt 00:00:06]} Nxd5 {[%clk 00:12:44]} {[%emt
00:00:48]} 15. cxd5 {[%clk 00:12:23]} {[%emt 00:00:02]} Nd4 {[%clk 00:12:14]}
{[%emt 00:00:40]} 16. e3 {[%clk 00:11:42]} {[%emt 00:00:52]} Nf5 {[%clk
00:11:17]} {[%emt 00:01:07]} 17. Bxg7 {[%clk 00:11:33]} {[%emt 00:00:19]} Kxg7
{[%clk 00:11:13]} {[%emt 00:00:14]} 18. d4 {[%clk 00:11:34]} {[%emt 00:00:10]}
Kg8 {[%clk 00:09:46]} {[%emt 00:01:37]} 19. dxc5 {[%clk 00:10:03]} {[%emt
00:01:40]} dxc5 {[%clk 00:09:50]} {[%emt 00:00:05]} 20. Nf3 {[%clk 00:10:11]}
{[%emt 00:00:03]} Rad8 {[%clk 00:08:58]} {[%emt 00:01:01]} 21. e4 {[%clk
00:10:19]} {[%emt 00:00:03]} Nd6 {[%clk 00:09:00]} {[%emt 00:00:07]} 22. Qc1
{[%clk 00:08:22]} {[%emt 00:02:08]} Kh7 {[%clk 00:03:46]} {[%emt 00:05:24]} 23.
Ng5+ {[%clk 00:08:30]} {[%emt 00:00:02]} Kg8 {[%clk 00:03:40]} {[%emt
00:00:10]} 24. Qxc5 {[%clk 00:07:55]} {[%emt 00:00:51]} Rc8 {[%clk 00:03:12]}
{[%emt 00:00:38]} 25. Qb4 {[%clk 00:07:08]} {[%emt 00:00:56]} Rc4 {[%clk
00:03:03]} {[%emt 00:00:19]} 26. Qd2 {[%clk 00:07:02]} {[%emt 00:00:17]} Rfc8
{[%clk 00:02:28]} {[%emt 00:00:45]} 27. e5 {[%clk 00:06:20]} {[%emt 00:00:52]}
Rc2 {[%clk 00:01:38]} {[%emt 00:01:00]} 28. Qf4 {[%clk 00:05:15]} {[%emt
00:01:15]} R8c4 {[%clk 00:00:57]} {[%emt 00:00:51]} 29. Qf3 {[%clk 00:04:06]}
{[%emt 00:01:19]} Nf5 {[%clk 00:01:06]} {[%emt 00:00:02]} 30. Nxf7 {[%clk
00:03:10]} {[%emt 00:01:06]} Nxh4 {[%clk 00:00:49]} {[%emt 00:00:26]} 31. Nh6+
{[%clk 00:01:54]} {[%emt 00:01:25]} Kg7 {[%clk 00:00:45]} {[%emt 00:00:13]} 32.
gxh4 {[%clk 00:02:01]} {[%emt 00:00:05]} Kxh6 {[%clk 00:00:48]} {[%emt
00:00:07]} 33. e6 {[%clk 00:01:47]} {[%emt 00:00:24]} Qd6 {[%clk 00:00:49]}
{[%emt 00:00:08]} 34. Re4 {[%clk 00:01:26]} {[%emt 00:00:32]} Rxe4 {[%clk
00:00:44]} {[%emt 00:00:15]} 35. Qxe4 {[%clk 00:01:34]} {[%emt 00:00:01]} Rxb2
{[%clk 00:00:46]} {[%emt 00:00:09]} 36. Qd4 {[%clk 00:01:43]} Kh7 {[%clk
00:00:32]} {[%emt 00:00:23]} 37. Qxb2 {[%clk 00:01:52]} {[%emt 00:00:03]} Qf4
{[%clk 00:00:41]} {[%emt 00:00:01]} 38. Qb3 {[%clk 00:01:46]} {[%emt 00:00:14]}
Qxh4 {[%clk 00:00:48]} {[%emt 00:00:04]} 39. Qg3 {[%clk 00:01:38]} {[%emt
00:00:18]} Qd4 {[%clk 00:00:56]} {[%emt 00:00:02]} 40. Rc1 {[%clk 00:01:36]}
{[%emt 00:00:12]} Qxd5 {[%clk 00:01:04]} {[%emt 00:00:02]} 41. Rc7 {[%clk
00:01:23]} {[%emt 00:00:23]} Qxe6 {[%clk 00:01:12]} {[%emt 00:00:03]} 42. Rxb7
{[%clk 00:01:26]} {[%emt 00:00:06]} Qe1+ {[%clk 00:01:19]} {[%emt 00:00:03]} 43.
Kh2 {[%clk 00:01:33]} {[%emt 00:00:03]} Qe4 {[%clk 00:01:25]} {[%emt 00:00:03]}
44. Rxa7 {[%clk 00:01:35]} {[%emt 00:00:09]} h4 {[%clk 00:01:34]} 45. Qc7
{[%clk 00:01:39]} {[%emt 00:00:06]} Qf3 {[%clk 00:01:36]} {[%emt 00:00:08]} 46.
Qxe7+ {[%clk 00:01:46]} {[%emt 00:00:03]} Kh6 {[%clk 00:01:45]} 47. Qxh4+
{[%clk 00:01:34]} {[%emt 00:00:22]} Qh5 {[%clk 00:01:54]} {[%emt 00:00:02]} 48.
Qxh5+ {[%clk 00:01:42]} {[%emt 00:00:01]} gxh5 {[%clk 00:02:02]} {[%emt
00:00:02]} 49. Rb7 {[%clk 00:01:51]} {[%emt 00:00:01]} h4 {[%clk 00:02:10]}
{[%emt 00:00:02]} 50. a4 {[%clk 00:02:00]} {[%emt 00:00:01]} h3 {[%clk
00:02:19]} {[%emt 00:00:01]} 51. a5 {[%clk 00:02:09]} Kg6 {[%clk 00:02:27]}
{[%emt 00:00:01]} 52. Rb5 {[%clk 00:02:17]} {[%emt 00:00:03]} Kh6 {[%clk
00:02:35]} {[%emt 00:00:01]} 53. a6 {[%clk 00:02:26]} {[%emt 00:00:01]} Kg6
{[%clk 00:02:44]} {[%emt 00:00:01]} 54. a7 {[%clk 00:02:35]} {[%emt 00:00:02]}
Kf6 {[%clk 00:02:53]} {[%emt 00:00:01]} 55. a8=Q {[%clk 00:02:43]} {[%emt
00:00:03]} Kg6 {[%clk 00:03:01]} {[%emt 00:00:01]} 56. Qa6+ {[%clk 00:02:51]}
{[%emt 00:00:01]} Kg7 {[%clk 00:03:10]} {[%emt 00:00:01]} 57. Rb7+ {[%clk
00:03:00]} {[%emt 00:00:02]} Kg8 {[%clk 00:03:19]} 58. Qa8# {[%clk 00:02:56]}
{[%emt 00:00:01]} 1-0